[Event "Gibraltar Masters 18th"]
[Site "Gibraltar"]
[Date "2020.01.25"]
[Round "5.14"]
[White "Aryan, Chopra"]
[Black "Adhiban, Baskaran"]
[Result "1/2-1/2"]
[ECO "B91"]
[WhiteElo "2562"]
[BlackElo "2654"]
[PlyCount "206"]
[EventDate "2020.01.21"]
[EventType "swiss"]
[EventRounds "10"]
[EventCountry "GGB"]
[SourceTitle "BritBase"]
[Source "John Saunders"]
[SourceDate "2021.06.05"]
[SourceVersion "1"]
[SourceVersionDate "2021.06.05"]
[SourceQuality "1"]
[TimeControl "40/100:0"]
[WhiteClock "0:08:48"]
[BlackClock "0:32:41"]

1. e4 {[%emt 0:00:00]} c5 {[%emt 0:00:00]} 2. Nf3 {[%emt 0:00:00]} d6 {[%emt 0:
00:00]} 3. d4 {[%emt 0:00:00]} cxd4 {[%emt 0:00:00]} 4. Nxd4 {[%emt 0:00:00]}
Nf6 {[%emt 0:00:00]} 5. Nc3 {[%emt 0:00:00]} a6 {[%emt 0:00:00]} 6. g3 {
[%emt 0:00:00]} e5 {[%emt 0:00:00]} 7. Nde2 {[%emt 0:00:00]} Be6 {[%emt 0:00:
00]} 8. Bg2 {[%emt 0:00:00]} h5 {[%emt 0:00:00]} 9. Bg5 {[%emt 0:00:00]} Nbd7 {
[%emt 0:00:00]} 10. a4 {[%emt 0:00:00]} Be7 {[%emt 0:00:00]} 11. O-O {[%emt 0:
00:00]} Rc8 {[%emt 0:00:00]} 12. Qd2 {[%emt 0:00:00]} Nf8 {[%emt 0:00:00]} 13.
Bxf6 {[%emt 0:00:00]} Bxf6 {[%emt 0:00:00]} 14. Rfd1 {[%emt 0:00:00]} Be7 {
[%emt 0:00:00]} 15. Nd5 {[%emt 0:00:00]} Nd7 {[%emt 0:00:00]} 16. Nec3 {
[%emt 0:00:00]} Nb6 {[%emt 0:00:00]} 17. h4 {[%emt 0:00:00]} Nc4 {[%emt 0:00:
00]} 18. Qe2 {[%emt 0:00:00]} g5 {[%emt 0:00:00]} 19. hxg5 {[%emt 0:00:00]} h4
{[%emt 0:00:00]} 20. Nxe7 {[%emt 0:00:00]} Qxe7 {[%emt 0:00:00]} 21. b3 {
[%emt 0:00:00]} Nb6 {[%emt 0:00:00]} 22. Rd3 {[%emt 0:00:00]} Qxg5 {[%emt 0:00:
00]} 23. Qe3 {[%emt 0:00:00]} Qxe3 {[%emt 0:00:00]} 24. Rxe3 {[%emt 0:00:00]}
hxg3 {[%emt 0:00:00]} 25. Rxg3 {[%emt 0:00:00]} Ke7 {[%emt 0:00:00]} 26. Rd1 {
[%emt 0:00:00]} Nd7 {[%emt 0:00:00]} 27. Rd2 {[%emt 0:00:00]} Nf6 {[%emt 0:00:
00]} 28. Ne2 {[%emt 0:00:00]} b5 {[%emt 0:00:00]} 29. axb5 {[%emt 0:00:00]}
axb5 {[%emt 0:00:00]} 30. Rgd3 {[%emt 0:00:00]} Rc6 {[%emt 0:00:00]} 31. Ng3 {
[%emt 0:00:00]} Rhc8 {[%emt 0:00:00]} 32. Nf5+ {[%emt 0:00:00]} Bxf5 {[%emt 0:
00:00]} 33. exf5 {[%emt 0:00:00]} Ra6 {[%emt 0:00:00]} 34. Kf1 {[%emt 0:00:00]}
Nh5 {[%emt 0:00:00]} 35. Bf3 {[%emt 0:00:00]} Ra1+ {[%emt 0:00:00]} 36. Rd1 {
[%emt 0:00:00]} Rxd1+ {[%emt 0:00:00]} 37. Bxd1 {[%emt 0:00:00]} Nf6 {[%emt 0:
00:00]} 38. Re3 {[%emt 0:00:00]} Rc5 {[%emt 0:00:00]} 39. Ke1 {[%emt 0:00:00]}
e4 {[%emt 0:00:00]} 40. f3 {[%emt 0:01:01]} Rxf5 {[%emt 0:00:00]} 41. c4 {
[%emt 0:00:00]} bxc4 {[%emt 0:00:00]} 42. bxc4 {[%emt 0:00:00]} Re5 {[%emt 0:
00:00]} 43. Kf2 {[%emt 0:00:00]} Ke6 {[%emt 0:00:00]} 44. Bc2 {[%emt 0:00:00]}
exf3 {[%emt 0:00:00]} 45. Kxf3 {[%emt 0:00:00]} Rxe3+ {[%emt 0:00:00]} 46. Kxe3
{[%emt 0:00:00]} Ke5 {[%emt 0:00:00]} 47. Ba4 {[%emt 0:00:00]} Ne4 {[%emt 0:00:
00]} 48. Bc6 {[%emt 0:00:00]} f5 {[%emt 0:00:00]} 49. Kd3 {[%emt 0:00:00]} Nc5+
{[%emt 0:00:00]} 50. Ke3 {[%emt 0:00:00]} Ne6 {[%emt 0:00:00]} 51. Bd5 {
[%emt 0:00:00]} Nf4 {[%emt 0:00:00]} 52. Bb7 {[%emt 0:00:00]} Nh5 {[%emt 0:00:
00]} 53. Bc6 {[%emt 0:00:00]} Nf6 {[%emt 0:00:00]} 54. Bb7 {[%emt 0:00:00]}
Ng4+ {[%emt 0:00:00]} 55. Kf3 {[%emt 0:00:00]} Nh6 {[%emt 0:00:00]} 56. Bd5 {
[%emt 0:00:00]} f4 {[%emt 0:00:00]} 57. Ke2 {[%emt 0:00:00]} Nf5 {[%emt 0:00:
00]} 58. Kd3 {[%emt 0:00:00]} Nd4 {[%emt 0:00:00]} 59. Bb7 {[%emt 0:00:00]} Ne6
{[%emt 0:00:00]} 60. Bg2 {[%emt 0:00:00]} Nc5+ {[%emt 0:00:00]} 61. Kc3 {
[%emt 0:00:00]} Ne4+ {[%emt 0:00:00]} 62. Kd3 {[%emt 0:00:00]} Nf2+ {[%emt 0:
00:00]} 63. Ke2 {[%emt 0:00:00]} Ng4 {[%emt 0:00:00]} 64. Kd3 {[%emt 0:00:00]}
Ne3 {[%emt 0:00:00]} 65. Bb7 {[%emt 0:00:00]} Nd1 {[%emt 0:00:00]} 66. Bf3 {
[%emt 0:01:01]} Nf2+ {[%emt 0:00:00]} 67. Ke2 {[%emt 0:00:00]} Nh3 {[%emt 0:00:
00]} 68. Kd3 {[%emt 0:00:00]} Ng5 {[%emt 0:00:00]} 69. Bd5 {[%emt 0:00:00]} Nh7
{[%emt 0:00:00]} 70. Bb7 {[%emt 0:00:00]} Nf8 {[%emt 0:00:00]} 71. Bc8 {
[%emt 0:00:00]} Ng6 {[%emt 0:00:00]} 72. Bb7 {[%emt 0:00:00]} Ne7 {[%emt 0:00:
00]} 73. Bf3 {[%emt 0:00:00]} Nf5 {[%emt 0:00:00]} 74. Ba8 {[%emt 0:00:00]} Nd4
{[%emt 0:00:00]} 75. Bd5 {[%emt 0:00:00]} Nb3 {[%emt 0:00:00]} 76. Bg2 {
[%emt 0:00:00]} Kf5 {[%emt 0:00:00]} 77. Kc3 {[%emt 0:00:00]} Nc5 {[%emt 0:00:
00]} 78. Kd4 {[%emt 0:00:00]} Kg4 {[%emt 0:00:00]} 79. Kd5 {[%emt 0:00:00]} Kg3
{[%emt 0:00:00]} 80. Bh1 {[%emt 0:00:00]} Kh2 {[%emt 0:00:00]} 81. Bf3 {
[%emt 0:00:00]} Kg3 {[%emt 0:00:00]} 82. Bh1 {[%emt 0:00:00]} Nb7 {[%emt 0:00:
00]} 83. Kc6 {[%emt 0:00:00]} Na5+ {[%emt 0:00:00]} 84. Kxd6 {[%emt 0:00:00]}
Nxc4+ {[%emt 0:00:00]} 85. Ke6 {[%emt 0:00:00]} Nd2 {[%emt 0:00:00]} 86. Ba8 {
[%emt 0:00:00]} Kf2 {[%emt 0:00:00]} 87. Kf5 {[%emt 0:00:00]} Ke3 {[%emt 0:00:
00]} 88. Bb7 {[%emt 0:00:00]} Nc4 {[%emt 0:00:00]} 89. Bh1 {[%emt 0:00:00]}
Nd6+ {[%emt 0:00:00]} 90. Ke5 {[%emt 0:00:00]} Nb5 {[%emt 0:00:00]} 91. Kf5 {
[%emt 0:00:00]} Nc3 {[%emt 0:00:00]} 92. Kg4 {[%emt 0:00:00]} Ne4 {[%emt 0:00:
00]} 93. Bg2 {[%emt 0:00:00]} Nd2 {[%emt 0:00:00]} 94. Bh1 {[%emt 0:00:00]} Nc4
{[%emt 0:00:00]} 95. Kf5 {[%emt 0:00:00]} Nb2 {[%emt 0:00:00]} 96. Bd5 {
[%emt 0:00:00]} Nd3 {[%emt 0:00:00]} 97. Bb7 {[%emt 0:00:00]} Nb2 {[%emt 0:00:
00]} 98. Bd5 {[%emt 0:00:00]} Nd1 {[%emt 0:00:00]} 99. Bb7 {[%emt 0:00:00]} Nf2
{[%emt 0:00:00]} 100. Ba8 {[%emt 0:00:00]} Nh3 {[%emt 0:00:00]} 101. Bb7 {
[%emt 0:00:00]} Ng1 {[%emt 0:00:00]} 102. Kg4 {[%emt 0:00:00]} f3 {[%emt 0:00:
00]} 103. Bxf3 {[%emt 0:00:00]} Nxf3 {[%emt 0:00:00]} 1/2-1/2

[Event "Gibraltar Masters 18th"]
[Site "Gibraltar"]
[Date "2020.01.25"]
[Round "5.15"]
[White "Sasikiran, Krishnan"]
[Black "Moroni, Luca Jr"]
[Result "1-0"]
[ECO "C78"]
[WhiteElo "2648"]
[BlackElo "2532"]
[PlyCount "91"]
[EventDate "2020.01.21"]
[EventType "swiss"]
[EventRounds "10"]
[EventCountry "GGB"]
[SourceTitle "BritBase"]
[Source "John Saunders"]
[SourceDate "2021.06.05"]
[SourceVersion "1"]
[SourceVersionDate "2021.06.05"]
[SourceQuality "1"]
[TimeControl "40/100:0"]
[WhiteClock "0:42:54"]
[BlackClock "1:12:34"]

1. e4 {[%emt 0:00:00]} e5 {[%emt 0:00:00]} 2. Nf3 {[%emt 0:00:00]} Nc6 {
[%emt 0:00:00]} 3. Bb5 {[%emt 0:00:00]} a6 {[%emt 0:00:00]} 4. Ba4 {[%emt 0:00:
00]} Nf6 {[%emt 0:00:00]} 5. O-O {[%emt 0:00:00]} b5 {[%emt 0:00:00]} 6. Bb3 {
[%emt 0:00:00]} Bc5 {[%emt 0:00:00]} 7. a4 {[%emt 0:00:00]} Rb8 {[%emt 0:00:00]
} 8. c3 {[%emt 0:00:00]} d6 {[%emt 0:00:00]} 9. d4 {[%emt 0:00:00]} Bb6 {
[%emt 0:00:00]} 10. a5 {[%emt 0:00:00]} Ba7 {[%emt 0:00:00]} 11. h3 {[%emt 0:
00:00]} O-O {[%emt 0:00:00]} 12. Be3 {[%emt 0:00:00]} exd4 {[%emt 0:00:00]} 13.
cxd4 {[%emt 0:00:00]} Nb4 {[%emt 0:00:00]} 14. Nc3 {[%emt 0:00:00]} Bb7 {
[%emt 0:00:00]} 15. Ng5 {[%emt 0:00:00]} Qe8 {[%emt 0:00:00]} 16. e5 {[%emt 0:
00:00]} dxe5 {[%emt 0:00:00]} 17. dxe5 {[%emt 0:00:00]} Qc6 {[%emt 0:00:00]}
18. Nf3 {[%emt 0:00:00]} Bxe3 {[%emt 0:00:00]} 19. fxe3 {[%emt 0:00:00]} Ne4 {
[%emt 0:00:00]} 20. Qd4 {[%emt 0:00:00]} Nxc3 {[%emt 0:00:00]} 21. Qxb4 {
[%emt 0:00:00]} Ne4 {[%emt 0:00:00]} 22. e6 {[%emt 0:00:00]} fxe6 {[%emt 0:00:
00]} 23. Ne5 {[%emt 0:00:00]} Qc5 {[%emt 0:00:00]} 24. Bxe6+ {[%emt 0:00:00]}
Kh8 {[%emt 0:00:00]} 25. Qxc5 {[%emt 0:00:00]} Nxc5 {[%emt 0:00:00]} 26. Nf7+ {
[%emt 0:00:00]} Kg8 {[%emt 0:00:00]} 27. Nh6+ {[%emt 0:00:00]} Kh8 {[%emt 0:00:
00]} 28. Nf7+ {[%emt 0:00:00]} Kg8 {[%emt 0:00:00]} 29. Ba2 {[%emt 0:00:00]} b4
{[%emt 0:00:00]} 30. Nh6+ {[%emt 0:00:00]} Kh8 {[%emt 0:00:00]} 31. Nf7+ {
[%emt 0:00:00]} Kg8 {[%emt 0:00:00]} 32. Bc4 {[%emt 0:00:00]} g6 {[%emt 0:00:
00]} 33. Nd8+ {[%emt 0:00:00]} Kg7 {[%emt 0:00:00]} 34. Rxf8 {[%emt 0:00:00]}
Kxf8 {[%emt 0:00:00]} 35. Nxb7 {[%emt 0:00:00]} Rxb7 {[%emt 0:00:00]} 36. Rf1+
{[%emt 0:00:00]} Ke8 {[%emt 0:00:00]} 37. Rf6 {[%emt 0:00:00]} b3 {[%emt 0:00:
00]} 38. Rc6 {[%emt 0:00:00]} Na4 {[%emt 0:00:00]} 39. Bxa6 {[%emt 0:00:00]}
Rb4 {[%emt 0:00:00]} 40. Rc4 {[%emt 0:00:00]} Rxc4 {[%emt 0:00:00]} 41. Bxc4 {
[%emt 0:00:46]} Kd8 {[%emt 0:00:00]} 42. Bxb3 {[%emt 0:01:26]} Nxb2 {[%emt 0:
00:00]} 43. Kf2 {[%emt 0:00:00]} Nd3+ {[%emt 0:00:00]} 44. Kf3 {[%emt 0:00:00]}
Kc8 {[%emt 0:00:00]} 45. Bg8 {[%emt 0:00:00]} h6 {[%emt 0:00:00]} 46. Ke4 {
[%emt 0:00:00]} 1-0

[Event "Gibraltar Masters 18th"]
[Site "Gibraltar"]
[Date "2020.01.25"]
[Round "5.16"]
[White "Tabatabaei, M.Amin"]
[Black "Kotronias, Vasilios"]
[Result "0-1"]
[ECO "E90"]
[WhiteElo "2638"]
[BlackElo "2526"]
[PlyCount "42"]
[EventDate "2020.01.21"]
[EventType "swiss"]
[EventRounds "10"]
[EventCountry "GGB"]
[SourceTitle "BritBase"]
[Source "John Saunders"]
[SourceDate "2021.06.05"]
[SourceVersion "1"]
[SourceVersionDate "2021.06.05"]
[SourceQuality "1"]
[TimeControl "40/100:0"]
[WhiteClock "0:37:43"]
[BlackClock "1:30:54"]

1. d4 {[%emt 0:00:00]} Nf6 {[%emt 0:00:00]} 2. c4 {[%emt 0:00:00]} g6 {[%emt 0:
00:00]} 3. Nc3 {[%emt 0:00:00]} Bg7 {[%emt 0:00:00]} 4. e4 {[%emt 0:00:00]} d6
{[%emt 0:00:00]} 5. h3 {[%emt 0:00:00]} O-O {[%emt 0:00:00]} 6. Be3 {[%emt 0:
00:00]} c5 {[%emt 0:00:00]} 7. Nf3 {[%emt 0:00:00]} cxd4 {[%emt 0:00:00]} 8.
Nxd4 {[%emt 0:00:00]} a6 {[%emt 0:00:00]} 9. Be2 {[%emt 0:00:00]} b6 {[%emt 0:
00:00]} 10. Bf3 {[%emt 0:00:00]} Bb7 {[%emt 0:00:00]} 11. e5 {[%emt 0:00:00]}
Bxf3 {[%emt 0:00:00]} 12. Qxf3 {[%emt 0:00:00]} dxe5 {[%emt 0:00:00]} 13. Ne6 {
[%emt 0:00:00]} e4 {[%emt 0:00:00]} 14. Nxe4 {[%emt 0:00:00]} fxe6 {[%emt 0:00:
00]} 15. Nxf6+ {[%emt 0:00:00]} Bxf6 {[%emt 0:00:00]} 16. Qxa8 {[%emt 0:00:00]}
Qd3 {[%emt 0:00:00]} 17. Rd1 {[%emt 0:00:00]} Qxc4 {[%emt 0:00:00]} 18. Bh6 {
[%emt 0:00:00]} Bg7 {[%emt 0:00:00]} 19. Rc1 {[%emt 0:00:00]} Qd3 {[%emt 0:00:
00]} 20. Bxg7 {[%emt 0:00:00]} Kxg7 {[%emt 0:00:00]} 21. Qb7 {[%emt 0:00:00]}
Rf4 {[%emt 0:00:00]} 0-1

[Event "Gibraltar Masters 18th"]
[Site "Gibraltar"]
[Date "2020.01.25"]
[Round "5.17"]
[White "Hjartarson, Johann"]
[Black "Deac, Bogdan-Daniel"]
[Result "1-0"]
[ECO "C54"]
[WhiteElo "2524"]
[BlackElo "2626"]
[PlyCount "89"]
[EventDate "2020.01.21"]
[EventType "swiss"]
[EventRounds "10"]
[EventCountry "GGB"]
[SourceTitle "BritBase"]
[Source "John Saunders"]
[SourceDate "2021.06.05"]
[SourceVersion "1"]
[SourceVersionDate "2021.06.05"]
[SourceQuality "1"]
[TimeControl "40/100:0"]
[WhiteClock "0:46:50"]
[BlackClock "0:50:22"]

1. e4 {[%emt 0:00:00]} e5 {[%emt 0:00:00]} 2. Nf3 {[%emt 0:00:00]} Nc6 {
[%emt 0:00:00]} 3. Bc4 {[%emt 0:00:00]} Nf6 {[%emt 0:00:00]} 4. d3 {[%emt 0:00:
00]} Bc5 {[%emt 0:00:00]} 5. c3 {[%emt 0:00:00]} d6 {[%emt 0:00:00]} 6. b4 {
[%emt 0:00:00]} Bb6 {[%emt 0:00:00]} 7. a4 {[%emt 0:00:00]} a6 {[%emt 0:00:00]}
8. O-O {[%emt 0:00:00]} O-O {[%emt 0:00:00]} 9. Nbd2 {[%emt 0:00:00]} Ne7 {
[%emt 0:00:00]} 10. Bb3 {[%emt 0:00:00]} Ng6 {[%emt 0:00:00]} 11. Nc4 {[%emt 0:
00:00]} Ba7 {[%emt 0:00:00]} 12. a5 {[%emt 0:00:00]} Be6 {[%emt 0:00:00]} 13.
Be3 {[%emt 0:00:00]} Bxc4 {[%emt 0:00:00]} 14. Bxc4 {[%emt 0:00:00]} c6 {
[%emt 0:00:00]} 15. Bb3 {[%emt 0:00:00]} d5 {[%emt 0:00:00]} 16. exd5 {[%emt 0:
00:00]} Bxe3 {[%emt 0:00:00]} 17. fxe3 {[%emt 0:00:00]} cxd5 {[%emt 0:00:00]}
18. c4 {[%emt 0:00:00]} e4 {[%emt 0:00:00]} 19. dxe4 {[%emt 0:00:00]} dxc4 {
[%emt 0:00:00]} 20. Bxc4 {[%emt 0:00:00]} Nxe4 {[%emt 0:00:00]} 21. Qb3 {
[%emt 0:00:00]} Qe7 {[%emt 0:00:00]} 22. Rad1 {[%emt 0:00:00]} Rac8 {[%emt 0:
00:00]} 23. Nd4 {[%emt 0:00:00]} Ne5 {[%emt 0:00:00]} 24. Nf5 {[%emt 0:00:00]}
Qc7 {[%emt 0:00:00]} 25. Qb2 {[%emt 0:00:00]} Nf6 {[%emt 0:00:00]} 26. Bd5 {
[%emt 0:00:00]} Rcd8 {[%emt 0:00:00]} 27. e4 {[%emt 0:00:00]} Kh8 {[%emt 0:00:
11]} 28. h3 {[%emt 0:00:00]} Rd7 {[%emt 0:00:45]} 29. Qf2 {[%emt 0:00:00]} Ng8
{[%emt 0:00:06]} 30. Qg3 {[%emt 0:00:00]} g6 {[%emt 0:00:00]} 31. Rc1 {[%emt 0:
00:00]} Qb8 {[%emt 0:00:00]} 32. Nd4 {[%emt 0:00:00]} Re8 {[%emt 0:00:03]} 33.
Kh1 {[%emt 0:00:00]} Qd6 {[%emt 0:00:00]} 34. Rc5 {[%emt 0:00:00]} Nf6 {
[%emt 0:00:00]} 35. Qc3 {[%emt 0:00:00]} Kg7 {[%emt 0:00:00]} 36. Nc2 {[%emt 0:
00:00]} Rde7 {[%emt 0:00:00]} 37. Ne3 {[%emt 0:00:00]} h5 {[%emt 0:00:02]} 38.
b5 {[%emt 0:00:00]} h4 {[%emt 0:00:01]} 39. b6 {[%emt 0:00:00]} Rd7 {[%emt 0:
00:00]} 40. Rc7 {[%emt 0:00:00]} Rxc7 {[%emt 0:00:00]} 41. bxc7 {[%emt 0:00:34]
} Rc8 {[%emt 0:00:00]} 42. Rxf6 {[%emt 0:00:00]} Qxf6 {[%emt 0:00:00]} 43. Bxb7
{[%emt 0:00:00]} Rxc7 {[%emt 0:00:00]} 44. Qxc7 {[%emt 0:00:00]} Nd3 {[%emt 0:
00:00]} 45. Kh2 {[%emt 0:00:00]} 1-0

[Event "Gibraltar Masters 18th"]
[Site "Gibraltar"]
[Date "2020.01.25"]
[Round "5.18"]
[White "Chigaev, Maksim"]
[Black "Kozak, Adam"]
[Result "1/2-1/2"]
[ECO "B90"]
[WhiteElo "2616"]
[BlackElo "2523"]
[PlyCount "115"]
[EventDate "2020.01.21"]
[EventType "swiss"]
[EventRounds "10"]
[EventCountry "GGB"]
[SourceTitle "BritBase"]
[Source "John Saunders"]
[SourceDate "2021.06.05"]
[SourceVersion "1"]
[SourceVersionDate "2021.06.05"]
[SourceQuality "1"]
[TimeControl "40/100:0"]
[WhiteClock "0:57:04"]
[BlackClock "0:36:23"]

1. e4 {[%emt 0:00:00]} c5 {[%emt 0:00:00]} 2. Nf3 {[%emt 0:00:00]} d6 {[%emt 0:
00:00]} 3. d4 {[%emt 0:00:00]} cxd4 {[%emt 0:00:00]} 4. Nxd4 {[%emt 0:00:00]}
Nf6 {[%emt 0:00:00]} 5. Nc3 {[%emt 0:00:00]} a6 {[%emt 0:00:00]} 6. Be3 {
[%emt 0:00:00]} e5 {[%emt 0:00:00]} 7. Nf3 {[%emt 0:00:00]} Be7 {[%emt 0:00:00]
} 8. Nd2 {[%emt 0:00:00]} Be6 {[%emt 0:00:00]} 9. Nc4 {[%emt 0:00:00]} Nc6 {
[%emt 0:00:00]} 10. Nd5 {[%emt 0:00:00]} O-O {[%emt 0:00:00]} 11. Nxe7+ {
[%emt 0:00:00]} Qxe7 {[%emt 0:00:00]} 12. Qxd6 {[%emt 0:00:00]} Bxc4 {[%emt 0:
00:00]} 13. Qxe7 {[%emt 0:00:00]} Nxe7 {[%emt 0:00:00]} 14. Bxc4 {[%emt 0:00:
00]} Nxe4 {[%emt 0:00:00]} 15. Bd3 {[%emt 0:00:00]} Nf6 {[%emt 0:00:00]} 16.
O-O-O {[%emt 0:00:00]} Rac8 {[%emt 0:00:00]} 17. f3 {[%emt 0:00:00]} Nfd5 {
[%emt 0:00:00]} 18. Bd2 {[%emt 0:00:00]} Rfd8 {[%emt 0:00:00]} 19. Rhe1 {
[%emt 0:00:00]} f6 {[%emt 0:00:00]} 20. Kb1 {[%emt 0:00:00]} Kf7 {[%emt 0:00:
00]} 21. c4 {[%emt 0:00:00]} Nf4 {[%emt 0:00:00]} 22. Bxf4 {[%emt 0:00:00]}
exf4 {[%emt 0:00:00]} 23. Be4 {[%emt 0:00:00]} Rxd1+ {[%emt 0:00:00]} 24. Rxd1
{[%emt 0:00:00]} Rc7 {[%emt 0:00:00]} 25. b3 {[%emt 0:00:00]} f5 {[%emt 0:00:
00]} 26. Bc2 {[%emt 0:00:00]} Kf6 {[%emt 0:00:00]} 27. Kb2 {[%emt 0:00:00]} g5
{[%emt 0:00:00]} 28. Kc3 {[%emt 0:00:00]} g4 {[%emt 0:00:00]} 29. b4 {[%emt 0:
00:00]} h5 {[%emt 0:00:00]} 30. c5 {[%emt 0:00:00]} Kg5 {[%emt 0:00:00]} 31.
Rd2 {[%emt 0:00:00]} Ng6 {[%emt 0:00:00]} 32. Kb3 {[%emt 0:00:00]} Nh4 {
[%emt 0:00:00]} 33. Bd1 {[%emt 0:00:00]} Re7 {[%emt 0:00:00]} 34. a4 {[%emt 0:
00:00]} gxf3 {[%emt 0:00:00]} 35. gxf3 {[%emt 0:00:00]} Nxf3 {[%emt 0:00:00]}
36. Bxf3 {[%emt 0:00:00]} Re3+ {[%emt 0:00:00]} 37. Kc4 {[%emt 0:00:00]} Rxf3 {
[%emt 0:00:00]} 38. b5 {[%emt 0:00:00]} axb5+ {[%emt 0:00:00]} 39. axb5 {
[%emt 0:00:00]} Rf1 {[%emt 0:00:00]} 40. Rc2 {[%emt 0:00:00]} f3 {[%emt 0:01:
00]} 41. c6 {[%emt 0:00:00]} bxc6 {[%emt 0:01:26]} 42. bxc6 {[%emt 0:00:00]}
Rd1 {[%emt 0:00:00]} 43. Kc5 {[%emt 0:00:00]} Rd8 {[%emt 0:00:00]} 44. c7 {
[%emt 0:00:00]} Rc8 {[%emt 0:00:00]} 45. Kd6 {[%emt 0:00:00]} Kf4 {[%emt 0:00:
00]} 46. Kd7 {[%emt 0:00:00]} Rh8 {[%emt 0:00:00]} 47. c8=Q {[%emt 0:00:00]}
Rxc8 {[%emt 0:00:00]} 48. Rxc8 {[%emt 0:00:00]} f2 {[%emt 0:00:00]} 49. Rc1 {
[%emt 0:00:00]} h4 {[%emt 0:00:00]} 50. Ke6 {[%emt 0:00:00]} h3 {[%emt 0:00:00]
} 51. Kf6 {[%emt 0:00:00]} Kf3 {[%emt 0:00:00]} 52. Kxf5 {[%emt 0:00:00]} Kg2 {
[%emt 0:00:00]} 53. Kf4 {[%emt 0:00:00]} f1=Q+ {[%emt 0:00:00]} 54. Rxf1 {
[%emt 0:00:00]} Kxf1 {[%emt 0:00:00]} 55. Kf3 {[%emt 0:00:00]} Ke1 {[%emt 0:00:
00]} 56. Kg3 {[%emt 0:00:00]} Ke2 {[%emt 0:00:00]} 57. Kxh3 {[%emt 0:00:00]}
Kf3 {[%emt 0:00:00]} 58. Kh4 {[%emt 0:00:07]} 1/2-1/2

[Event "Gibraltar Masters 18th"]
[Site "Gibraltar"]
[Date "2020.01.25"]
[Round "5.19"]
[White "Barbosa, Evandro Amorim"]
[Black "Kobalia, Mikhail"]
[Result "0-1"]
[ECO "B19"]
[WhiteElo "2501"]
[BlackElo "2609"]
[PlyCount "90"]
[EventDate "2020.01.21"]
[EventType "swiss"]
[EventRounds "10"]
[EventCountry "GGB"]
[SourceTitle "BritBase"]
[Source "John Saunders"]
[SourceDate "2021.06.05"]
[SourceVersion "1"]
[SourceVersionDate "2021.06.05"]
[SourceQuality "1"]
[TimeControl "40/100:0"]
[WhiteClock "0:31:06"]
[BlackClock "0:41:19"]

1. e4 {[%emt 0:00:00]} c6 {[%emt 0:00:00]} 2. d4 {[%emt 0:00:00]} d5 {[%emt 0:
00:00]} 3. Nc3 {[%emt 0:00:00]} dxe4 {[%emt 0:00:00]} 4. Nxe4 {[%emt 0:00:00]}
Bf5 {[%emt 0:00:00]} 5. Ng3 {[%emt 0:00:00]} Bg6 {[%emt 0:00:00]} 6. h4 {
[%emt 0:00:00]} h6 {[%emt 0:00:00]} 7. Nf3 {[%emt 0:00:00]} Nd7 {[%emt 0:00:00]
} 8. h5 {[%emt 0:00:00]} Bh7 {[%emt 0:00:00]} 9. Bd3 {[%emt 0:00:00]} Bxd3 {
[%emt 0:00:00]} 10. Qxd3 {[%emt 0:00:00]} e6 {[%emt 0:00:00]} 11. Bd2 {[%emt 0:
00:00]} Ngf6 {[%emt 0:00:00]} 12. O-O-O {[%emt 0:00:00]} Be7 {[%emt 0:00:00]}
13. Kb1 {[%emt 0:00:00]} Qb6 {[%emt 0:00:00]} 14. c4 {[%emt 0:00:00]} Rd8 {
[%emt 0:00:00]} 15. Ne4 {[%emt 0:00:00]} O-O {[%emt 0:00:00]} 16. Bc3 {[%emt 0:
00:00]} c5 {[%emt 0:00:00]} 17. Nxf6+ {[%emt 0:00:00]} Bxf6 {[%emt 0:00:00]}
18. Qe3 {[%emt 0:00:00]} cxd4 {[%emt 0:00:00]} 19. Bxd4 {[%emt 0:00:00]} Bxd4 {
[%emt 0:00:00]} 20. Rxd4 {[%emt 0:00:00]} e5 {[%emt 0:00:00]} 21. Rd5 {[%emt 0:
00:00]} e4 {[%emt 0:00:00]} 22. Rhd1 {[%emt 0:00:00]} Qc7 {[%emt 0:00:00]} 23.
Qd4 {[%emt 0:00:00]} exf3 {[%emt 0:00:00]} 24. gxf3 {[%emt 0:00:00]} Qc6 {
[%emt 0:00:00]} 25. b3 {[%emt 0:00:00]} a5 {[%emt 0:00:00]} 26. f4 {[%emt 0:00:
00]} a4 {[%emt 0:00:00]} 27. Rd6 {[%emt 0:00:00]} Qg2 {[%emt 0:00:00]} 28. bxa4
{[%emt 0:00:00]} Qg4 {[%emt 0:00:00]} 29. Rd5 {[%emt 0:00:00]} Ra8 {[%emt 0:00:
00]} 30. f3 {[%emt 0:00:00]} Qh4 {[%emt 0:00:00]} 31. Rxd7 {[%emt 0:00:00]}
Qxh5 {[%emt 0:00:00]} 32. Rg1 {[%emt 0:00:00]} g6 {[%emt 0:00:00]} 33. Rd5 {
[%emt 0:00:00]} Qxf3 {[%emt 0:00:00]} 34. Rd6 {[%emt 0:00:00]} Ra6 {[%emt 0:00:
00]} 35. c5 {[%emt 0:00:00]} Re8 {[%emt 0:00:00]} 36. Qc4 {[%emt 0:00:00]} Re6
{[%emt 0:00:00]} 37. Rd8+ {[%emt 0:00:00]} Kh7 {[%emt 0:00:00]} 38. Rd7 {
[%emt 0:00:00]} Kg8 {[%emt 0:00:00]} 39. Rd8+ {[%emt 0:00:00]} Kg7 {[%emt 0:00:
00]} 40. Rd7 {[%emt 0:01:04]} Rf6 {[%emt 0:00:00]} 41. Rf1 {[%emt 0:00:00]} Qc6
{[%emt 0:00:00]} 42. Rd4 {[%emt 0:00:00]} Ra5 {[%emt 0:00:00]} 43. Rc1 {
[%emt 0:00:00]} b6 {[%emt 0:00:00]} 44. cxb6 {[%emt 0:00:00]} Qxb6+ {[%emt 0:
00:00]} 45. Ka1 {[%emt 0:00:00]} Rc6 {[%emt 0:00:00]} 0-1